Workbook

Sheet Лист1
A1: Разрешить работу МАКРОСОВ !!! Если не было такого вопроса перед открытием файла, то Для того, чтобы включить макросы в экселе, нужно нажать на круглую кнопку "Office" в левом верхнем углу и после кликнуть на кнопку "параметры excel". В открывшемся окне выбрать пункт "Центр управления безопасностью", после этого выберете "Параметры макросов" и справа в окне отметьте опцию "Включить все макросы".
A2: Расчет объемов дождевых и талых сточных вод, принимаемых в централизованные систему хозяйственно-бытвой канализации МУП "Новгородский водоканал", исходя из запланированной суммы в бюджете учреждения на очередной финансовый год
A4: Наименование абонента:
A7: Адрес объекта:
A10: 1. Исходные данные для расчета:
A11: Запланированное финансирование: | E11: 100000 | G11: рублей
A13: Площадь участка (F), с которого осуществляется сброс | G13: Коэффициент стока
A14: Кровли и асфальт | D14: 0.54 | E14: Га | K14: ᴪд | L14: ᴪт
A15: Брусчатые и булыжные мостовые | D15: 0.05 | E15: Га | G15: Кровли и асфальт | K15: 0.7 | L15: 0.7
A16: Грунтовые поверхности | D16: 0 | E16: Га | G16: Брусчатые и булыжные мостовые | K16: 0.5
A17: Газоны | D17: 0.456 | E17: Га | G17: Грунтовые поверхности | K17: 0.2
A18: Всего | D18: =SUM(D14:D17) -> 1.046 | E18: Га | G18: Газоны | K18: 0.1
G19: Средневзвешенный | K19: =ROUND(SUMPRODUCT(D14:D17,K15:K18)/SUM(D14:D17),5) -> 0.42887
A20: Коэффициент вывоза снега (Ку) | D20: 0.8
A22: 2. Расчет дождевого стока:
A26: где: Hд мес - слой осадков за теплый период
A27: F - площадь участка, с которого осуществляется сброс
A28: Ψср.д - средневзвешенный коэффициент дождевого стока
A30: 3. Расчет талого стока:
A34: где: Hт мес - слой осадков за холодный период
A35: F - площадь участка, с которого осуществляется сброс
A36: Ψт - коэффициент талого стока
A37: Ку - коэффициент вывоза снега
A39: 4. Суммарное количество поверхностных сточных вод:
A44: Расчёт объёма и стоимости услуги сведён в следующую таблицу с учётом поправочного коэффициента к месячным средним многолетним осадкам, учитвающего плановый объём запланированных финансов в учреждении на плановый период.
A45: Поправочный коэффициент: | D45: 0.553337244
A46: Период | B46: Осадки - теплый период | C46: Осадки - холодный период | D46: Общая площадь | E46: Кровли и асфальт К=0,7 | F46: брусчатые и булыжные мостовые - 0,5; | G46: грунтовые поверхности К=0,2 | H46: газон К=0,1 | I46: средневзвешенное значение коэффициента стока | J46: коэффициент талого стока | K46: коэффициент вывоза снега | L46: К-нт обеспеченности | M46: объем, м3 | N46: Тариф без НДС | O46: Стоимость объёма поверхностного и дождевого стока, руб с НДС | P46: Плата за негативное воздействие
A47: 2022-01-01 | C47: =39.5*D45 -> 21.85682114 | D47: =SUM(E47:H47) -> 1.046 | E47: =D14 -> 0.54 | F47: =D15 -> 0.05 | G47: =D16 -> 0 | H47: =D17 -> 0.456 | I47: =ROUND((E47*0.7+F47*0.5+G47*0.2+H47*0.1)/D47,6) -> 0.428872 | J47: 0.7 | K47: 0.8 | L47: 1.07 | M47: =(ROUND(10*D47*I47*B47*L47,5) + ROUND(10*D47*J47*C47*K47*L47,5)) -> 136.99051 | N47: 32.84 | O47: =ROUND(M47*N47*1.2,3) -> 5398.522 | P47: =M47*N47*0.5*1.2 -> 2699.261009
A48: 2022-02-01 | C48: =31.7*D45 -> 17.54079063 | D48: =SUM(E48:H48) -> 1.046 | E48: =E47 -> 0.54 | F48: 0.05 | G48: 0 | H48: 0.456 | I48: =ROUND((E48*0.7+F48*0.5+G48*0.2+H48*0.1)/D48,6) -> 0.428872 | J48: 0.7 | K48: 0.8 | L48: =L47 -> 1.07 | M48: =(ROUND(10*D48*I48*B48*L48,5) + ROUND(10*D48*J48*C48*K48*L48,5)) -> 109.93922 | N48: 32.84 | O48: =ROUND(M48*N48*1.2,3) -> 4332.485 | P48: =M48*N48*0.5*1.2 -> 2166.242391
A49: 2022-03-01 | C49: =30.5*D45 -> 16.87678594 | D49: =SUM(E49:H49) -> 1.046 | E49: 0.54 | F49: 0.05 | G49: 0 | H49: 0.456 | I49: 0.428872 | J49: 0.7 | K49: 0.8 | L49: =L48 -> 1.07 | M49: 105.77748 | N49: 32.84 | O49: 4168.479 | P49: 2084.239466
A50: 2022-04-01 | B50: =35.3*D45 -> 19.53280471 | D50: =SUM(E50:H50) -> 1.046 | E50: 0.54 | F50: 0.05 | G50: 0 | H50: 0.456 | I50: 0.428872 | J50: 0.7 | K50: 0.8 | L50: =L49 -> 1.07 | M50: 93.75788 | N50: 32.84 | O50: 3694.811 | P50: 1847.405268
A51: 2022-05-01 | B51: =49.7*D45 -> 27.50086103 | D51: 1.046 | E51: 0.54 | F51: 0.05 | G51: 0 | H51: 0.456 | I51: 0.428872 | J51: 0.7 | K51: 0.8 | L51: =L50 -> 1.07 | M51: 132.00472 | N51: 32.84 | O51: 5202.042 | P51: 2601.021003
A52: 2022-06-01 | B52: =73.6*D45 -> 40.72562116 | D52: 1.046 | E52: 0.54 | F52: 0.05 | G52: 0 | H52: 0.456 | I52: 0.428872 | J52: 0.7 | K52: 0.8 | L52: =L51 -> 1.07 | M52: 195.48384 | N52: 32.84 | O52: 7703.627 | P52: 3851.813583
A53: Итого за 1 полугодие | M53: =SUM(M47:M52) -> 773.95365 | O53: =SUM(O47:O52) -> 30499.966 | P53: =SUM(P47:P52) -> 15249.98272
A54: 2022-07-01 | B54: =65.1*D45 -> 36.02225458 | D54: =SUM(E54:H54) -> 1.046 | E54: =E52 -> 0.54 | F54: =F52 -> 0.05 | G54: =G52 -> 0 | H54: =H52 -> 0.456 | I54: 0.428872 | J54: 0.7 | K54: 0.8 | L54: =L52 -> 1.07 | M54: 172.90759 | N54: 33.72 | O54: 6996.533 | P54: =M54*N54*0.5*1.2 -> 3498.266361
A55: 2022-08-01 | B55: =73.6*D45 -> 40.72562116 | D55: =SUM(E55:H55) -> 1.046 | E55: =E54 -> 0.54 | F55: 0.05 | G55: 0 | H55: 0.456 | I55: 0.428872 | J55: 0.7 | K55: 0.8 | L55: =L54 -> 1.07 | M55: 195.48384 | N55: 33.72 | O55: 7910.058 | P55: =M55*N55*0.5*1.2 -> 3955.029051
A56: 2022-09-01 | B56: =51*D45 -> 28.22019944 | D56: 1.046 | E56: 0.54 | F56: 0.05 | G56: 0 | H56: 0.456 | I56: 0.428872 | J56: 0.7 | K56: 0.8 | L56: =L55 -> 1.07 | M56: 135.45756 | N56: 33.72 | O56: 5481.155 | P56: 2740.577354
A57: 2022-10-01 | C57: =55*D45 -> 30.43354842 | D57: 1.046 | E57: 0.54 | F57: 0.05 | G57: 0 | H57: 0.456 | I57: 0.428872 | J57: 0.7 | K57: 0.8 | L57: =L56 -> 1.07 | M57: 190.74628 | N57: 33.72 | O57: 7718.357 | P57: 3859.178737
A58: 2022-11-01 | C58: =54.9*D45 -> 30.37821469 | D58: 1.046 | E58: 0.54 | F58: 0.05 | G58: 0 | H58: 0.456 | I58: 0.428872 | J58: 0.7 | K58: 0.8 | L58: =L57 -> 1.07 | M58: 190.39947 | N58: 33.72 | O58: 7704.324 | P58: 3852.162077
A59: 2022-12-01 | C59: =43.7*D45 -> 24.18083756 | D59: 1.046 | E59: =E58 -> 0.54 | F59: =F58 -> 0.05 | G59: =G58 -> 0 | H59: =H58 -> 0.456 | I59: 0.428872 | J59: 0.7 | K59: 0.8 | L59: =L58 -> 1.07 | M59: 151.55659 | N59: 33.72 | O59: 6132.586 | P59: 3066.292929
A60: Итого за 2 полугодие | M60: =SUM(M54:M59) -> 1036.55133 | O60: =SUM(O54:O59) -> 41943.013 | P60: =SUM(P54:P59) -> 20971.50651
A61: Итого: | M61: =M60+M53 -> 1810.50498 | O61: =O60+O53 -> 72442.979 | P61: =P60+P53 -> 36221.48923
A62: Всего за поверхностный сток и негативное воздействие: | O62: =O61+P61 -> 108664.4682
A63: Расчет произведен в соответствии с "Методическими указаниями по расчету объема принятых (отведенных) поверхностных сточных вод", утвержденными Приказом Минстроя России от 17.10.2014 №639/пр
B66: Нажать кнопку справа =>

Sheet Лист2

Sheet Лист3
